[Event "January 9 Early 2024"]
[Site "https://www.chess.com"]
[Date "2024.01.11"]
[Round "1"]
[White "Paravyan, David"]
[Black "Devaev, Alexander"]
[Result "1-0"]
[Board "60"]
[TimeControl "180+1"]
[WhiteFideId "4194985"]
[BlackFideId "4169395"]
[WhiteElo "3014"]
[BlackElo "2519"]
[WhiteTeam "FID"]
[BlackTeam "RUS"]
[WhiteClock "0:01:46"]
[BlackClock "0:00:11"]

1. e4 {[%clk 0:03:00]}  c6 {[%clk 0:03:00]} 2. d4 {[%clk 0:02:59]}  d5 {[%clk 0:03:00]} 3. e5 {[%clk 0:02:57]}  Bf5 {[%clk 0:03:01]} 4. Nf3 {[%clk 0:02:58]}  e6 {[%clk 0:02:56]} 5. c3 {[%clk 0:02:58]}  Nd7 {[%clk 0:02:57]} 6. Be2 {[%clk 0:02:57]}  a6 {[%clk 0:02:54]} 7. O-O {[%clk 0:02:56]}  h6 {[%clk 0:02:54]} 8. a4 {[%clk 0:02:55]}  c5 {[%clk 0:02:49]} 9. c4 {[%clk 0:02:52]}  Bxb1 {[%clk 0:02:20]} 10. Rxb1 {[%clk 0:02:51]}  Ne7 {[%clk 0:02:20]} 11. b4 {[%clk 0:02:44]}  cxd4 {[%clk 0:01:56]} 12. Nxd4 {[%clk 0:02:41]}  dxc4 {[%clk 0:01:51]} 13. Bxc4 {[%clk 0:02:35]}  Nxe5 {[%clk 0:01:49]} 14. Bxe6 {[%clk 0:02:33]}  fxe6 {[%clk 0:01:46]} 15. Qh5+ {[%clk 0:02:34]}  N5g6 {[%clk 0:01:47]} 16. Nxe6 {[%clk 0:02:34]}  Qb6 {[%clk 0:01:36]} 17. Re1 {[%clk 0:02:30]}  Kf7 {[%clk 0:01:24]} 18. Rb3 {[%clk 0:02:27]}  Rc8 {[%clk 0:01:10]} 19. Bb2 {[%clk 0:02:23]}  Rc4 {[%clk 0:00:37]} 20. Rf3+ {[%clk 0:02:20]}  Kg8 {[%clk 0:00:36]} 21. Nxf8 {[%clk 0:02:19]}  Qxb4 {[%clk 0:00:30]} 22. Rfe3 {[%clk 0:01:48]}  Qxb2 {[%clk 0:00:11]} 23. Nxg6 {[%clk 0:01:46]} 1-0

[Event "January 9 Early 2024"]
[Site "https://www.chess.com"]
[Date "2024.01.11"]
[Round "1"]
[White "Popov, Konstantin"]
[Black "Ladan, Nicholas"]
[Result "1-0"]
[Board "61"]
[TimeControl "180+1"]
[WhiteFideId "34137910"]
[BlackFideId "30918855"]
[WhiteElo "2904"]
[BlackElo "2482"]
[WhiteTeam "FID"]
[BlackTeam "USA"]
[WhiteClock "0:01:42"]
[BlackClock "0:00:26"]

1. e4 {[%clk 0:03:00]}  Nf6 {[%clk 0:02:56]} 2. e5 {[%clk 0:02:58]}  Nd5 {[%clk 0:02:56]} 3. d4 {[%clk 0:02:59]}  d6 {[%clk 0:02:54]} 4. Bc4 {[%clk 0:02:59]}  Nb6 {[%clk 0:02:51]} 5. Bb3 {[%clk 0:02:59]}  dxe5 {[%clk 0:02:50]} 6. Qh5 {[%clk 0:02:58]}  e6 {[%clk 0:02:42]} 7. dxe5 {[%clk 0:02:56]}  Nc6 {[%clk 0:02:40]} 8. Nf3 {[%clk 0:02:54]}  Na5 {[%clk 0:02:28]} 9. Nc3 {[%clk 0:02:49]}  Nxb3 {[%clk 0:02:28]} 10. axb3 {[%clk 0:02:50]}  Bd7 {[%clk 0:02:26]} 11. Bg5 {[%clk 0:02:38]}  Be7 {[%clk 0:02:25]} 12. Ne4 {[%clk 0:02:38]}  Nd5 {[%clk 0:02:00]} 13. O-O {[%clk 0:02:34]}  Bxg5 {[%clk 0:01:54]} 14. Nfxg5 {[%clk 0:02:32]}  Qe7 {[%clk 0:01:53]} 15. c4 {[%clk 0:02:30]}  Nf4 {[%clk 0:01:49]} 16. Qg4 {[%clk 0:02:23]}  Ng6 {[%clk 0:01:49]} 17. f4 {[%clk 0:02:23]}  a6 {[%clk 0:01:43]} 18. Qg3 {[%clk 0:02:14]}  O-O-O {[%clk 0:01:41]} 19. Qe3 {[%clk 0:02:12]}  Kb8 {[%clk 0:01:39]} 20. Nc5 {[%clk 0:02:12]}  Bc6 {[%clk 0:01:34]} 21. b4 {[%clk 0:02:11]}  Nh4 {[%clk 0:01:28]} 22. Rf2 {[%clk 0:02:11]}  Nf5 {[%clk 0:01:28]} 23. Qa3 {[%clk 0:02:09]}  h6 {[%clk 0:01:00]} 24. b5 {[%clk 0:01:59]}  Bxb5 {[%clk 0:00:48]} 25. cxb5 {[%clk 0:01:52]}  hxg5 {[%clk 0:00:48]} 26. Nxa6+ {[%clk 0:01:45]}  Kc8 {[%clk 0:00:26]} 27. Nc5 {[%clk 0:01:42]} 1-0

[Event "January 9 Early 2024"]
[Site "https://www.chess.com"]
[Date "2024.01.11"]
[Round "1"]
[White "Lamaze, Simon"]
[Black "Gutkin, Ilya"]
[Result "0-1"]
[Board "62"]
[TimeControl "180+1"]
[WhiteFideId "36069264"]
[BlackFideId "16203470"]
[WhiteElo "2635"]
[BlackElo "2333"]
[WhiteTeam "FRA"]
[BlackTeam "GER"]
[WhiteClock "0:01:21"]
[BlackClock "0:00:32"]

1. e4 {[%clk 0:03:00]}  e6 {[%clk 0:03:00]} 2. Nf3 {[%clk 0:03:00]}  d5 {[%clk 0:03:00]} 3. e5 {[%clk 0:03:01]}  Nh6 {[%clk 0:02:59]} 4. h4 {[%clk 0:02:54]}  Be7 {[%clk 0:02:44]} 5. h5 {[%clk 0:02:51]}  c5 {[%clk 0:02:42]} 6. b4 {[%clk 0:02:50]}  b6 {[%clk 0:02:30]} 7. c3 {[%clk 0:02:44]}  cxb4 {[%clk 0:02:26]} 8. cxb4 {[%clk 0:02:45]}  O-O {[%clk 0:02:02]} 9. b5 {[%clk 0:02:41]}  a6 {[%clk 0:01:59]} 10. d4 {[%clk 0:02:41]}  axb5 {[%clk 0:01:56]} 11. Bd3 {[%clk 0:02:42]}  Bb4+ {[%clk 0:01:51]} 12. Kf1 {[%clk 0:02:41]}  f5 {[%clk 0:01:42]} 13. Bxh6 {[%clk 0:02:36]}  gxh6 {[%clk 0:01:43]} 14. Bxb5 {[%clk 0:02:36]}  Bd7 {[%clk 0:01:27]} 15. Qe2 {[%clk 0:02:32]}  Qe8 {[%clk 0:01:18]} 16. Bxd7 {[%clk 0:02:30]}  Qxd7 {[%clk 0:01:19]} 17. Nbd2 {[%clk 0:02:27]}  Nc6 {[%clk 0:01:09]} 18. g3 {[%clk 0:02:26]}  Bc3 {[%clk 0:01:05]} 19. Rc1 {[%clk 0:02:12]}  Nxd4 {[%clk 0:01:04]} 20. Nxd4 {[%clk 0:02:12]}  Bxd4 {[%clk 0:01:05]} 21. Nf3 {[%clk 0:02:12]}  Bc5 {[%clk 0:01:04]} 22. Kg2 {[%clk 0:02:08]}  Ra3 {[%clk 0:01:00]} 23. Rhd1 {[%clk 0:01:58]}  Qa4 {[%clk 0:00:56]} 24. Rd2 {[%clk 0:01:40]}  Qg4 {[%clk 0:00:44]} 25. Ne1 {[%clk 0:01:34]}  Qg5 {[%clk 0:00:38]} 26. Nd3 {[%clk 0:01:31]}  f4 {[%clk 0:00:35]} 27. Rc4 {[%clk 0:01:27]}  f3+ {[%clk 0:00:33]} 28. Qxf3 {[%clk 0:01:23]}  Rxf3 {[%clk 0:00:33]} 29. Kxf3 {[%clk 0:01:21]}  dxc4 {[%clk 0:00:32]} 0-1

[Event "January 9 Early 2024"]
[Site "https://www.chess.com"]
[Date "2024.01.11"]
[Round "1"]
[White "Daneshvar, Bardiya"]
[Black "Ezat, Mohamed"]
[Result "1-0"]
[Board "63"]
[TimeControl "180+1"]
[WhiteFideId "12576468"]
[BlackFideId "10600906"]
[WhiteElo "2948"]
[BlackElo "2502"]
[WhiteTeam "IRI"]
[BlackTeam "EGY"]
[WhiteClock "0:02:20"]
[BlackClock "0:00:09"]

1. b3 {[%clk 0:02:59]}  d5 {[%clk 0:01:32]} 2. Bb2 {[%clk 0:03:00]}  Nc6 {[%clk 0:01:26]} 3. Nf3 {[%clk 0:02:59]}  a6 {[%clk 0:01:25]} 4. e3 {[%clk 0:02:58]}  Bg4 {[%clk 0:01:25]} 5. d4 {[%clk 0:02:57]}  e6 {[%clk 0:01:23]} 6. h3 {[%clk 0:02:56]}  Bh5 {[%clk 0:01:22]} 7. Bd3 {[%clk 0:02:54]}  Nf6 {[%clk 0:01:21]} 8. O-O {[%clk 0:02:54]}  Bxf3 {[%clk 0:01:20]} 9. Qxf3 {[%clk 0:02:54]}  Bd6 {[%clk 0:01:20]} 10. c4 {[%clk 0:02:53]}  O-O {[%clk 0:01:20]} 11. Nc3 {[%clk 0:02:49]}  b6 {[%clk 0:01:08]} 12. cxd5 {[%clk 0:02:47]}  exd5 {[%clk 0:01:07]} 13. Rac1 {[%clk 0:02:47]}  Ne7 {[%clk 0:01:06]} 14. g3 {[%clk 0:02:48]}  Ng6 {[%clk 0:01:05]} 15. Nxd5 {[%clk 0:02:45]}  Nxd5 {[%clk 0:01:02]} 16. Qxd5 {[%clk 0:02:46]}  Qe7 {[%clk 0:01:00]} 17. Qf5 {[%clk 0:02:44]}  a5 {[%clk 0:00:53]} 18. h4 {[%clk 0:02:42]}  Rfd8 {[%clk 0:00:50]} 19. h5 {[%clk 0:02:42]}  Nf8 {[%clk 0:00:50]} 20. Kg2 {[%clk 0:02:41]}  h6 {[%clk 0:00:49]} 21. e4 {[%clk 0:02:39]}  Rac8 {[%clk 0:00:42]} 22. e5 {[%clk 0:02:39]}  Ba3 {[%clk 0:00:42]} 23. Bxa3 {[%clk 0:02:37]}  Qxa3 {[%clk 0:00:42]} 24. Bc4 {[%clk 0:02:36]}  Qe7 {[%clk 0:00:36]} 25. d5 {[%clk 0:02:36]}  b5 {[%clk 0:00:34]} 26. Bxb5 {[%clk 0:02:35]}  g6 {[%clk 0:00:32]} 27. hxg6 {[%clk 0:02:33]}  fxg6 {[%clk 0:00:33]} 28. Qf4 {[%clk 0:02:31]}  Rxd5 {[%clk 0:00:31]} 29. Bc4 {[%clk 0:02:31]}  Rd8 {[%clk 0:00:30]} 30. Bxd5+ {[%clk 0:02:30]}  Rxd5 {[%clk 0:00:30]} 31. Rfd1 {[%clk 0:02:30]}  Rxe5 {[%clk 0:00:30]} 32. Qxh6 {[%clk 0:02:27]}  Re2 {[%clk 0:00:26]} 33. Qf4 {[%clk 0:02:27]}  Ne6 {[%clk 0:00:22]} 34. Qg4 {[%clk 0:02:25]}  Rxa2 {[%clk 0:00:19]} 35. Qxg6+ {[%clk 0:02:24]}  Ng7 {[%clk 0:00:18]} 36. Re1 {[%clk 0:02:21]}  Qf8 {[%clk 0:00:16]} 37. Rc2 {[%clk 0:02:20]}  Rxc2 {[%clk 0:00:14]} 38. Qxc2 {[%clk 0:02:21]}  c5 {[%clk 0:00:10]} 39. Qc4+ {[%clk 0:02:21]}  Kh7 {[%clk 0:00:10]} 40. Qe4+ {[%clk 0:02:20]}  Nf5 {[%clk 0:00:09]} 41. g4 {[%clk 0:02:20]} 1-0

[Event "January 9 Early 2024"]
[Site "https://www.chess.com"]
[Date "2024.01.11"]
[Round "1"]
[White "Van Foreest, Jorden"]
[Black "Fishchuk, Vladyslav"]
[Result "1-0"]
[Board "66"]
[TimeControl "180+1"]
[WhiteFideId "1039784"]
[BlackFideId "34122117"]
[WhiteElo "3018"]
[BlackElo "2520"]
[WhiteTeam "NED"]
[BlackTeam "UKR"]
[WhiteClock "0:01:23"]
[BlackClock "0:00:48"]

1. d4 {[%clk 0:03:00]}  d5 {[%clk 0:02:57]} 2. c4 {[%clk 0:03:01]}  e6 {[%clk 0:02:57]} 3. Nc3 {[%clk 0:03:01]}  Nf6 {[%clk 0:02:57]} 4. Nf3 {[%clk 0:02:59]}  Nbd7 {[%clk 0:02:57]} 5. e3 {[%clk 0:02:58]}  a6 {[%clk 0:02:55]} 6. b3 {[%clk 0:02:58]}  Bb4 {[%clk 0:02:55]} 7. Bd2 {[%clk 0:02:58]}  O-O {[%clk 0:02:55]} 8. Bd3 {[%clk 0:02:59]}  c5 {[%clk 0:02:52]} 9. O-O {[%clk 0:02:57]}  cxd4 {[%clk 0:02:51]} 10. exd4 {[%clk 0:02:57]}  dxc4 {[%clk 0:02:49]} 11. bxc4 {[%clk 0:02:54]}  b5 {[%clk 0:02:39]} 12. cxb5 {[%clk 0:02:44]}  Bxc3 {[%clk 0:02:25]} 13. Bxc3 {[%clk 0:02:43]}  axb5 {[%clk 0:02:25]} 14. Bxb5 {[%clk 0:02:43]}  Ba6 {[%clk 0:02:26]} 15. Bxa6 {[%clk 0:02:35]}  Rxa6 {[%clk 0:02:26]} 16. a4 {[%clk 0:02:35]}  Qa8 {[%clk 0:02:26]} 17. a5 {[%clk 0:02:34]}  Rc8 {[%clk 0:02:26]} 18. Qd3 {[%clk 0:02:30]}  Nd5 {[%clk 0:02:26]} 19. Bd2 {[%clk 0:02:30]}  Nb8 {[%clk 0:02:10]} 20. Rfc1 {[%clk 0:02:17]}  Nc6 {[%clk 0:02:10]} 21. h4 {[%clk 0:02:17]}  h6 {[%clk 0:01:51]} 22. Rc5 {[%clk 0:02:15]}  Nce7 {[%clk 0:01:41]} 23. Rac1 {[%clk 0:02:14]}  Rac6 {[%clk 0:01:37]} 24. Ne5 {[%clk 0:02:13]}  Rxc5 {[%clk 0:01:35]} 25. dxc5 {[%clk 0:02:13]}  Nc6 {[%clk 0:01:31]} 26. Nc4 {[%clk 0:02:02]}  Qa6 {[%clk 0:01:28]} 27. Qg3 {[%clk 0:02:00]}  Nd4 {[%clk 0:01:23]} 28. Qg4 {[%clk 0:01:52]}  e5 {[%clk 0:01:10]} 29. Nxe5 {[%clk 0:01:43]}  Ne2+ {[%clk 0:01:07]} 30. Kh2 {[%clk 0:01:37]}  Nxc1 {[%clk 0:01:06]} 31. Bxh6 {[%clk 0:01:38]}  Qxh6 {[%clk 0:00:58]} 32. Qxc8+ {[%clk 0:01:37]}  Kh7 {[%clk 0:00:59]} 33. Qf5+ {[%clk 0:01:37]}  Kg8 {[%clk 0:00:55]} 34. Qxf7+ {[%clk 0:01:37]}  Kh8 {[%clk 0:00:55]} 35. Qxd5 {[%clk 0:01:29]}  Qxh4+ {[%clk 0:00:55]} 36. Kg1 {[%clk 0:01:28]}  Ne2+ {[%clk 0:00:54]} 37. Kf1 {[%clk 0:01:28]}  Nc3 {[%clk 0:00:49]} 38. Qd8+ {[%clk 0:01:21]}  Qxd8 {[%clk 0:00:48]} 39. Nf7+ {[%clk 0:01:22]}  Kh7 {[%clk 0:00:48]} 40. Nxd8 {[%clk 0:01:23]} 1-0

[Event "January 9 Early 2024"]
[Site "https://www.chess.com"]
[Date "2024.01.11"]
[Round "1"]
[White "Krutko, Anatoly"]
[Black "Petersson, Kjell"]
[Result "1-0"]
[Board "67"]
[TimeControl "180+1"]
[WhiteFideId "4185862"]
[BlackFideId "1705148"]
[WhiteElo "2558"]
[BlackElo "2124"]
[WhiteTeam "RUS"]
[BlackTeam "SWE"]
[WhiteClock "0:01:34"]
[BlackClock "0:00:14"]

1. e4 {[%clk 0:03:00]}  c5 {[%clk 0:02:59]} 2. Nf3 {[%clk 0:02:52]}  d6 {[%clk 0:03:00]} 3. d4 {[%clk 0:02:53]}  cxd4 {[%clk 0:03:01]} 4. Qxd4 {[%clk 0:02:53]}  Nc6 {[%clk 0:02:59]} 5. Bb5 {[%clk 0:02:54]}  Bd7 {[%clk 0:03:00]} 6. Bxc6 {[%clk 0:02:55]}  Bxc6 {[%clk 0:03:00]} 7. Nc3 {[%clk 0:02:55]}  e6 {[%clk 0:02:59]} 8. Bg5 {[%clk 0:02:55]}  Nf6 {[%clk 0:02:46]} 9. O-O-O {[%clk 0:02:52]}  Be7 {[%clk 0:02:43]} 10. Qd3 {[%clk 0:02:53]}  O-O {[%clk 0:02:40]} 11. Nd4 {[%clk 0:02:52]}  h6 {[%clk 0:02:34]} 12. h4 {[%clk 0:02:46]}  Rc8 {[%clk 0:02:06]} 13. f4 {[%clk 0:02:43]}  Qa5 {[%clk 0:01:38]} 14. g4 {[%clk 0:02:41]}  hxg5 {[%clk 0:01:15]} 15. hxg5 {[%clk 0:02:40]}  Nxg4 {[%clk 0:01:13]} 16. Qh3 {[%clk 0:02:40]}  Nh6 {[%clk 0:01:03]} 17. gxh6 {[%clk 0:02:39]}  g6 {[%clk 0:01:04]} 18. f5 {[%clk 0:02:33]}  Kh7 {[%clk 0:00:52]} 19. Rdg1 {[%clk 0:02:20]}  Bd7 {[%clk 0:00:44]} 20. Kb1 {[%clk 0:02:05]}  Bf6 {[%clk 0:00:40]} 21. fxg6+ {[%clk 0:02:00]}  fxg6 {[%clk 0:00:39]} 22. Nb3 {[%clk 0:01:56]}  Qb6 {[%clk 0:00:32]} 23. Nd5 {[%clk 0:01:54]}  exd5 {[%clk 0:00:21]} 24. Qxd7+ {[%clk 0:01:54]}  Kh8 {[%clk 0:00:20]} 25. Rxg6 {[%clk 0:01:47]}  Rxc2 {[%clk 0:00:16]} 26. Qg7+ {[%clk 0:01:31]}  Bxg7 {[%clk 0:00:15]} 27. hxg7+ {[%clk 0:01:32]}  Kg8 {[%clk 0:00:15]} 28. Rh8+ {[%clk 0:01:33]}  Kf7 {[%clk 0:00:15]} 29. Rxf8+ {[%clk 0:01:33]}  Kxg6 {[%clk 0:00:14]} 30. g8=Q+ {[%clk 0:01:34]}  Kh6 {[%clk 0:00:14]} 31. Rf6+ {[%clk 0:01:34]} 1-0

[Event "January 9 Early 2024"]
[Site "https://www.chess.com"]
[Date "2024.01.11"]
[Round "1"]
[White "Lagarde, Maxime"]
[Black "Mrudul Dehankar"]
[Result "1-0"]
[Board "68"]
[TimeControl "180+1"]
[WhiteFideId "662399"]
[BlackFideId "25096990"]
[WhiteElo "2808"]
[BlackElo "2438"]
[WhiteTeam "FRA"]
[BlackTeam "IND"]
[WhiteClock "0:01:42"]
[BlackClock "0:00:01"]

1. d4 {[%clk 0:03:00]}  Nf6 {[%clk 0:01:39]} 2. c4 {[%clk 0:02:38]}  e6 {[%clk 0:01:30]} 3. Nf3 {[%clk 0:02:36]}  Bb4+ {[%clk 0:01:30]} 4. Bd2 {[%clk 0:02:35]}  c5 {[%clk 0:01:18]} 5. g3 {[%clk 0:02:34]}  Nc6 {[%clk 0:01:17]} 6. Bg2 {[%clk 0:02:29]}  Qb6 {[%clk 0:01:10]} 7. d5 {[%clk 0:02:15]}  exd5 {[%clk 0:01:05]} 8. cxd5 {[%clk 0:02:16]}  Nxd5 {[%clk 0:01:05]} 9. Nc3 {[%clk 0:02:16]}  Nf6 {[%clk 0:00:56]} 10. O-O {[%clk 0:02:08]}  d5 {[%clk 0:00:52]} 11. Bg5 {[%clk 0:02:03]}  Bxc3 {[%clk 0:00:31]} 12. bxc3 {[%clk 0:02:04]}  Be6 {[%clk 0:00:30]} 13. Rb1 {[%clk 0:01:59]}  Qc7 {[%clk 0:00:29]} 14. Bf4 {[%clk 0:01:53]}  Qd7 {[%clk 0:00:17]} 15. Ne5 {[%clk 0:01:51]}  Nxe5 {[%clk 0:00:16]} 16. Bxe5 {[%clk 0:01:52]}  O-O {[%clk 0:00:10]} 17. Bxf6 {[%clk 0:01:52]}  gxf6 {[%clk 0:00:10]} 18. Qd2 {[%clk 0:01:53]}  Rad8 {[%clk 0:00:07]} 19. Rfd1 {[%clk 0:01:53]}  b6 {[%clk 0:00:06]} 20. Qh6 {[%clk 0:01:53]}  Qe7 {[%clk 0:00:06]} 21. e3 {[%clk 0:01:49]}  Rd6 {[%clk 0:00:06]} 22. Rd2 {[%clk 0:01:49]}  Rfd8 {[%clk 0:00:07]} 23. Rbd1 {[%clk 0:01:49]}  Kh8 {[%clk 0:00:06]} 24. Qf4 {[%clk 0:01:47]}  f5 {[%clk 0:00:06]} 25. c4 {[%clk 0:01:45]}  Qd7 {[%clk 0:00:02]} 26. Qe5+ {[%clk 0:01:41]}  Kg8 {[%clk 0:00:01]} 27. cxd5 {[%clk 0:01:42]} 1-0

[Event "January 9 Early 2024"]
[Site "https://www.chess.com"]
[Date "2024.01.11"]
[Round "1"]
[White "Wagner, Dennis"]
[Black "Buchenau, Frank"]
[Result "1-0"]
[Board "69"]
[TimeControl "180+1"]
[WhiteFideId "24650684"]
[BlackFideId "4604350"]
[WhiteElo "2748"]
[BlackElo "2409"]
[WhiteTeam "GER"]
[BlackTeam "GER"]
[WhiteClock "0:01:48"]
[BlackClock "0:00:03"]

1. Nf3 {[%clk 0:03:00]}  Nf6 {[%clk 0:02:59]} 2. c4 {[%clk 0:03:00]}  e6 {[%clk 0:02:59]} 3. g3 {[%clk 0:03:00]}  b6 {[%clk 0:02:59]} 4. Bg2 {[%clk 0:03:00]}  Bb7 {[%clk 0:02:59]} 5. O-O {[%clk 0:03:01]}  Be7 {[%clk 0:02:59]} 6. Nc3 {[%clk 0:03:02]}  O-O {[%clk 0:02:59]} 7. Re1 {[%clk 0:03:01]}  Ne4 {[%clk 0:02:58]} 8. Nxe4 {[%clk 0:03:01]}  Bxe4 {[%clk 0:02:59]} 9. d3 {[%clk 0:03:01]}  Bb7 {[%clk 0:02:59]} 10. e4 {[%clk 0:03:02]}  c5 {[%clk 0:02:59]} 11. d4 {[%clk 0:03:02]}  cxd4 {[%clk 0:02:59]} 12. Nxd4 {[%clk 0:03:03]}  Nc6 {[%clk 0:03:00]} 13. Bf4 {[%clk 0:03:04]}  Nxd4 {[%clk 0:02:51]} 14. Qxd4 {[%clk 0:03:05]}  d6 {[%clk 0:02:49]} 15. Qd3 {[%clk 0:03:03]}  Rc8 {[%clk 0:02:36]} 16. Rad1 {[%clk 0:03:03]}  e5 {[%clk 0:02:28]} 17. Be3 {[%clk 0:03:00]}  Qc7 {[%clk 0:02:21]} 18. b3 {[%clk 0:03:00]}  Bc6 {[%clk 0:02:09]} 19. h4 {[%clk 0:02:59]}  Qb7 {[%clk 0:02:08]} 20. a4 {[%clk 0:02:14]}  f5 {[%clk 0:02:04]} 21. Bg5 {[%clk 0:02:11]}  fxe4 {[%clk 0:01:58]} 22. Bxe4 {[%clk 0:02:10]}  Bxe4 {[%clk 0:01:56]} 23. Qxe4 {[%clk 0:02:07]}  Qxe4 {[%clk 0:01:54]} 24. Rxe4 {[%clk 0:02:08]}  Bxg5 {[%clk 0:01:45]} 25. hxg5 {[%clk 0:02:09]}  Rc6 {[%clk 0:01:16]} 26. Kg2 {[%clk 0:02:09]}  a6 {[%clk 0:00:51]} 27. Rd5 {[%clk 0:02:08]}  Kf7 {[%clk 0:00:38]} 28. f4 {[%clk 0:02:07]}  exf4 {[%clk 0:00:17]} 29. gxf4 {[%clk 0:02:07]}  Re8 {[%clk 0:00:13]} 30. Kf3 {[%clk 0:01:58]}  g6 {[%clk 0:00:09]} 31. f5 {[%clk 0:01:49]}  Rxe4 {[%clk 0:00:03]} 32. Kxe4 {[%clk 0:01:49]}  gxf5+ {[%clk 0:00:03]} 33. Kxf5 {[%clk 0:01:48]} 1-0

[Event "January 9 Early 2024"]
[Site "https://www.chess.com"]
[Date "2024.01.11"]
[Round "1"]
[White "Martin Fuentes, Alberto"]
[Black "Blokhin, Sofia"]
[Result "1-0"]
[Board "71"]
[TimeControl "180+1"]
[WhiteFideId "2292289"]
[BlackFideId "4508190"]
[WhiteElo "2638"]
[BlackElo "2294"]
[WhiteTeam "ESP"]
[BlackTeam "EST"]
[WhiteClock "0:01:39"]
[BlackClock "0:00:06"]

1. e4 {[%clk 0:03:00]}  c5 {[%clk 0:02:59]} 2. Nc3 {[%clk 0:02:59]}  e6 {[%clk 0:02:57]} 3. g3 {[%clk 0:03:00]}  Nc6 {[%clk 0:02:56]} 4. Bg2 {[%clk 0:03:00]}  g6 {[%clk 0:02:56]} 5. d3 {[%clk 0:03:00]}  Bg7 {[%clk 0:02:56]} 6. Be3 {[%clk 0:03:00]}  b6 {[%clk 0:02:55]} 7. Qd2 {[%clk 0:02:59]}  Nge7 {[%clk 0:02:54]} 8. Bh6 {[%clk 0:02:51]}  O-O {[%clk 0:02:53]} 9. h4 {[%clk 0:02:51]}  f6 {[%clk 0:02:46]} 10. Bxg7 {[%clk 0:02:49]}  Kxg7 {[%clk 0:02:45]} 11. f4 {[%clk 0:02:50]}  h6 {[%clk 0:02:41]} 12. Nf3 {[%clk 0:02:48]}  Nd4 {[%clk 0:02:32]} 13. O-O {[%clk 0:02:45]}  d5 {[%clk 0:02:23]} 14. exd5 {[%clk 0:02:42]}  Nxf3+ {[%clk 0:02:17]} 15. Rxf3 {[%clk 0:02:38]}  exd5 {[%clk 0:02:16]} 16. d4 {[%clk 0:02:35]}  Bg4 {[%clk 0:02:10]} 17. Rf2 {[%clk 0:02:23]}  c4 {[%clk 0:02:01]} 18. Re1 {[%clk 0:02:19]}  Nf5 {[%clk 0:01:52]} 19. Kh2 {[%clk 0:02:16]}  g5 {[%clk 0:01:43]} 20. fxg5 {[%clk 0:02:04]}  hxg5 {[%clk 0:01:40]} 21. hxg5 {[%clk 0:02:04]}  Rh8+ {[%clk 0:01:38]} 22. Kg1 {[%clk 0:02:04]}  fxg5 {[%clk 0:01:20]} 23. Nxd5 {[%clk 0:02:04]}  Re8 {[%clk 0:00:37]} 24. Rxe8 {[%clk 0:01:58]}  Qxe8 {[%clk 0:00:35]} 25. Nc7 {[%clk 0:01:55]}  Qh5 {[%clk 0:00:24]} 26. Nxa8 {[%clk 0:01:51]}  Nxg3 {[%clk 0:00:22]} 27. d5 {[%clk 0:01:46]}  Bh3 {[%clk 0:00:15]} 28. Bxh3 {[%clk 0:01:42]}  Qxh3 {[%clk 0:00:10]} 29. Qxg5+ {[%clk 0:01:41]}  Kh8 {[%clk 0:00:06]} 30. Rh2 {[%clk 0:01:39]} 1-0

[Event "January 9 Early 2024"]
[Site "https://www.chess.com"]
[Date "2024.01.11"]
[Round "1"]
[White "Kovalev, Vladislav"]
[Black "Toktomushev, Teimur"]
[Result "1-0"]
[Board "73"]
[TimeControl "180+1"]
[WhiteFideId "13504398"]
[BlackFideId "14176726"]
[WhiteElo "2911"]
[BlackElo "2486"]
[WhiteTeam "FID"]
[BlackTeam "UKR"]
[WhiteClock "0:01:35"]
[BlackClock "0:00:01"]

1. e4 {[%clk 0:02:55]}  c5 {[%clk 0:02:55]} 2. Nf3 {[%clk 0:02:55]}  e6 {[%clk 0:02:45]} 3. c3 {[%clk 0:02:55]}  d5 {[%clk 0:02:43]} 4. exd5 {[%clk 0:02:54]}  Qxd5 {[%clk 0:02:44]} 5. d4 {[%clk 0:02:54]}  Nf6 {[%clk 0:02:42]} 6. Na3 {[%clk 0:02:50]}  Nc6 {[%clk 0:02:42]} 7. Nb5 {[%clk 0:02:49]}  Qd8 {[%clk 0:02:42]} 8. dxc5 {[%clk 0:02:47]}  Bxc5 {[%clk 0:02:41]} 9. Qxd8+ {[%clk 0:02:44]}  Kxd8 {[%clk 0:02:42]} 10. b4 {[%clk 0:02:45]}  Bb6 {[%clk 0:01:33]} 11. Nd6 {[%clk 0:02:45]}  Ke7 {[%clk 0:01:27]} 12. Nc4 {[%clk 0:02:43]}  Nd5 {[%clk 0:00:45]} 13. Nxb6 {[%clk 0:02:31]}  axb6 {[%clk 0:00:45]} 14. Bb2 {[%clk 0:02:24]}  f6 {[%clk 0:00:36]} 15. a3 {[%clk 0:02:23]}  e5 {[%clk 0:00:34]} 16. c4 {[%clk 0:02:21]}  Nf4 {[%clk 0:00:34]} 17. g3 {[%clk 0:02:21]}  Ne6 {[%clk 0:00:08]} 18. O-O-O {[%clk 0:02:20]}  Ncd4 {[%clk 0:00:05]} 19. Bg2 {[%clk 0:02:09]}  Nxf3 {[%clk 0:00:05]} 20. Bxf3 {[%clk 0:02:10]}  Ng5 {[%clk 0:00:06]} 21. Bd5 {[%clk 0:02:01]}  Be6 {[%clk 0:00:06]} 22. f4 {[%clk 0:01:57]}  Nf7 {[%clk 0:00:06]} 23. fxe5 {[%clk 0:01:53]}  Nxe5 {[%clk 0:00:05]} 24. Rhe1 {[%clk 0:01:49]}  Bxd5 {[%clk 0:00:03]} 25. Rxd5 {[%clk 0:01:50]}  Rhc8 {[%clk 0:00:03]} 26. Bxe5 {[%clk 0:01:50]}  fxe5 {[%clk 0:00:01]} 27. Rdxe5+ {[%clk 0:01:42]}  Kf6 {[%clk 0:00:02]} 28. Re6+ {[%clk 0:01:41]}  Kf5 {[%clk 0:00:03]} 29. h3 {[%clk 0:01:36]}  Rc5 {[%clk 0:00:01]} 30. bxc5 {[%clk 0:01:35]} 1-0